Workbook

Sheet 1. 매수매도 총잔량
A3: =TODAY() -> 2023-12-12
A4: 시간 | B4: 매도총잔량 | C4: 매도건수 | D4: 매수총잔량 | E4: 매수건수 | F4: 순매수총잔량 | G4: 선물지수 | H4: 순매수건수 | I4: 평균계약수
A5: 45272.65694 | B5: 5895 | C5: 790 | D5: 7187 | E5: 931 | F5: 1292 | G5: 340.5 | H5: 141 | I5: 9.163120567
B6: 건수당 계약수 | C6: 7.462025316 | D6: 건수당 계약수 | E6: 7.719656284 | F6: 건수당 순매수 계약수 | H6: 0.2576309671
A8: 시간 | B8: 매도총잔량 | C8: 매도건수 | D8: 매수총잔량 | E8: 매수건수 | F8: 순매수총잔량 | G8: 선물지수 | H8: 순매수건수 | I8: 평균계약수
A9: 08:40:00 | B9: 14184 | C9: 1159 | D9: 14464 | E9: 1252 | F9: 280 | G9: 338.25 | H9: =(D9/E9)-(B9/C9) -> -0.6854206695 | I9: =(D9-B9)/(E9-C9) -> 3.010752688
A10: 08:41:00 | B10: 14218 | C10: 1166 | D10: 14514 | E10: 1273 | F10: 296 | G10: 338.25 | H10: -0.7924110602 | I10: 2.76635514
A11: 08:42:00 | B11: 14290 | C11: 1187 | D11: 14567 | E11: 1293 | F11: 277 | G11: 338.25 | H11: -0.7727052087 | I11: 2.613207547
A12: 08:43:00 | B12: 14012 | C12: 1186 | D12: 14431 | E12: 1297 | F12: 419 | G12: 338.25 | H12: -0.6880568857 | I12: 3.774774775
A13: 08:44:00 | B13: 13394 | C13: 1159 | D13: 13890 | E13: 1305 | F13: 496 | G13: 338.25 | H13: -0.9128360755 | I13: 3.397260274
A14: 08:45:00 | B14: 13737 | C14: 1260 | D14: 14331 | E14: 1422 | F14: 594 | G14: 338.25 | H14: -0.8243218807 | I14: 3.666666667
A15: 08:46:00 | B15: 14844 | C15: 1573 | D15: 13869 | E15: 1418 | F15: -975 | G15: 339.7 | H15: 0.3439319368 | I15: 6.290322581
A16: 08:47:00 | B16: 15055 | C16: 1650 | D16: 14013 | E16: 1508 | F16: -1042 | G16: 339.7 | H16: 0.1681978941 | I16: 7.338028169
A17: 08:48:00 | B17: 15312 | C17: 1741 | D17: 13789 | E17: 1465 | F17: -1523 | G17: 339.55 | H17: 0.6173412558 | I17: 5.518115942
A18: 08:49:00 | B18: 15418 | C18: 1753 | D18: 14212 | E18: 1542 | F18: -1206 | G18: 339.65 | H18: 0.4213936013 | I18: 5.71563981
A19: 08:50:00 | B19: 15396 | C19: 1764 | D19: 14335 | E19: 1603 | F19: -1061 | G19: 339.7 | H19: 0.2147164543 | I19: 6.590062112
A20: 08:51:00 | B20: 15192 | C20: 1740 | D20: 14601 | E20: 1687 | F20: -591 | G20: 339.8 | H20: -0.07602559124 | I20: 11.1509434
A21: 08:52:00 | B21: 15270 | C21: 1778 | D21: 14555 | E21: 1676 | F21: -715 | G21: 339.75 | H21: 0.09606607945 | I21: 7.009803922
A22: 08:53:00 | B22: 15085 | C22: 1727 | D22: 14677 | E22: 1727 | F22: -408 | G22: 339.85 | H22: -0.2362478286 | I22: =(D22-B22)/(E22-C22) -> 
A23: 08:54:00 | B23: 15171 | C23: 1764 | D23: 14673 | E23: 1728 | F23: -498 | G23: 339.8 | H23: -0.1090206916 | I23: 13.83333333
A24: 08:55:00 | B24: 15575 | C24: 1817 | D24: 14526 | E24: 1687 | F24: -1049 | G24: 339.7 | H24: 0.03872959036 | I24: 8.069230769
A25: 08:56:00 | B25: 15645 | C25: 1850 | D25: 14554 | E25: 1696 | F25: -1091 | G25: 339.65 | H25: 0.1246111678 | I25: 7.084415584
A26: 08:57:00 | B26: 15791 | C26: 1894 | D26: 14474 | E26: 1682 | F26: -1317 | G26: 339.6 | H26: 0.267850663 | I26: 6.212264151
A27: 08:58:00 | B27: 15572 | C27: 1828 | D27: 14591 | E27: 1733 | F27: -981 | G27: 339.75 | H27: -0.09909581164 | I27: 10.32631579
A28: 08:59:00 | B28: 15620 | C28: 1839 | D28: 14564 | E28: 1721 | F28: -1056 | G28: 339.7 | H28: -0.03122481176 | I28: 8.949152542
A29: 09:00:00 | B29: 15823 | C29: 1909 | D29: 14269 | E29: 1618 | F29: -1554 | G29: 339.5 | H29: 0.5302794453 | I29: 5.340206186
A30: 09:01:00 | B30: 15898 | C30: 1940 | D30: 14180 | E30: 1680 | F30: -1718 | G30: 339.6 | H30: 0.2456308297 | I30: 6.607692308
A31: 09:02:00 | B31: 15969 | C31: 1961 | D31: 14267 | E31: 1688 | F31: -1702 | G31: 339.6 | H31: 0.3087199804 | I31: 6.234432234
A32: 09:03:00 | B32: 16092 | C32: 1979 | D32: 14227 | E32: 1714 | F32: -1865 | G32: 339.55 | H32: 0.1690872599 | I32: 7.037735849
A33: 09:04:00 | B33: 16585 | C33: 2127 | D33: 14053 | E33: 1642 | F33: -2532 | G33: 339.4 | H33: 0.7610981024 | I33: 5.220618557
A34: 09:05:00 | B34: 16141 | C34: 1964 | D34: 14573 | E34: 1814 | F34: -1568 | G34: 339.6 | H34: -0.184804429 | I34: 10.45333333
A35: 09:06:00 | B35: 15966 | C35: 1947 | D35: 14869 | E35: 1948 | F35: -1097 | G35: 339.7 | H35: -0.5673512876 | I35: -1097
A36: 09:07:00 | B36: 16391 | C36: 2060 | D36: 14678 | E36: 1901 | F36: -1713 | G36: 339.55 | H36: -0.2355967478 | I36: 10.77358491
A37: 09:08:00 | B37: 15690 | C37: 1836 | D37: 15463 | E37: 2079 | F37: -227 | G37: 339.85 | H37: -1.108041196 | I37: -0.9341563786
A38: 09:09:00 | B38: 15226 | C38: 1702 | D38: 15867 | E38: 2240 | F38: 641 | G38: 340 | H38: -1.862463803 | I38: 1.191449814
A39: 09:10:00 | B39: 14603 | C39: 1560 | D39: 16588 | E39: 2431 | F39: 1985 | G39: 340.45 | H39: -2.537368024 | I39: 2.278989667
A40: 09:11:00 | B40: 14130 | C40: 1495 | D40: 17079 | E40: 2445 | F40: 2949 | G40: 340.7 | H40: -2.466228943 | I40: 3.104210526
A41: 09:12:00 | B41: 13756 | C41: 1423 | D41: 17446 | E41: 2603 | F41: 3690 | G41: 340.85 | H41: -2.964634298 | I41: 3.127118644
A42: 09:13:00 | B42: 14462 | C42: 1649 | D42: 16940 | E42: 2445 | F42: 2478 | G42: 340.75 | H42: -1.841738378 | I42: 3.113065327
A43: 09:14:00 | B43: 15612 | C43: 1938 | D43: 16197 | E43: 2179 | F43: 585 | G43: 340.3 | H43: -0.6225013036 | I43: 2.427385892
A44: 09:15:00 | B44: 15832 | C44: 1997 | D44: 16152 | E44: 2176 | F44: 320 | G44: 340.15 | H44: -0.5050977201 | I44: 1.787709497
A45: 09:16:00 | B45: 16123 | C45: 2077 | D45: 15963 | E45: 2139 | F45: -160 | G45: 340.1 | H45: -0.2998053212 | I45: -2.580645161
A46: 09:17:00 | B46: 16035 | C46: 2106 | D46: 15780 | E46: 2058 | F46: -255 | G46: 340 | H46: 0.05367837 | I46: 5.3125
A47: 09:18:00 | B47: 16213 | C47: 2107 | D47: 15848 | E47: 2093 | F47: -365 | G47: 340 | H47: -0.1229204134 | I47: 26.07142857
A48: 09:19:00 | B48: 15901 | C48: 2033 | D48: 16346 | E48: 2205 | F48: 445 | G48: 340.1 | H48: -0.4082942113 | I48: 2.587209302
A49: 09:20:00 | B49: 15369 | C49: 1914 | D49: 16827 | E49: 2366 | F49: 1458 | G49: 340.3 | H49: -0.917777183 | I49: 3.225663717
A50: 09:21:00 | B50: 15987 | C50: 2104 | D50: 16409 | E50: 2224 | F50: 422 | G50: 340.1 | H50: -0.2202365484 | I50: 3.516666667
A51: 09:22:00 | B51: 15744 | C51: 1998 | D51: 16805 | E51: 2337 | F51: 1061 | G51: 340.3 | H51: -0.6890369188 | I51: =(D51-B51)/(E51-C51) -> 3.12979351
A52: 09:23:00 | B52: 15148 | C52: 1820 | D52: 17361 | E52: 2514 | F52: 2213 | G52: 340.5 | H52: -1.417348999 | I52: 3.188760807
A53: 09:24:00 | B53: 15221 | C53: 1881 | D53: 17471 | E53: 2518 | F53: 2250 | G53: 340.55 | H53: -1.153529146 | I53: 3.532182104
A54: 09:25:00 | B54: 15125 | C54: 1859 | D54: 17544 | E54: 2541 | F54: 2419 | G54: 340.6 | H54: -1.231726316 | I54: 3.546920821
A55: 09:26:00 | B55: 14939 | C55: 1802 | D55: 17707 | E55: 2606 | F55: 2768 | G55: 340.65 | H55: -1.495528546 | I55: 3.44278607
A56: 09:27:00 | B56: 14887 | C56: 1819 | D56: 17785 | E56: 2617 | F56: 2898 | G56: 340.65 | H56: -1.388217564 | I56: 3.631578947
A57: 09:28:00 | B57: 15500 | C57: 1998 | D57: 17166 | E57: 2462 | F57: 1666 | G57: 340.5 | H57: -0.785377579 | I57: 3.590517241
A58: 09:29:00 | B58: 15162 | C58: 1915 | D58: 17585 | E58: 2579 | F58: 2423 | G58: 340.65 | H58: -1.098959157 | I58: 3.649096386
A59: 09:30:00 | B59: 14753 | C59: 1778 | D59: 18232 | E59: 2704 | F59: 3479 | G59: 340.8 | H59: -1.554921759 | I59: 3.757019438
A60: 09:31:00 | B60: 14774 | C60: 1779 | D60: 18429 | E60: 2726 | F60: 3655 | G60: 340.8 | H60: -1.544210663 | I60: 3.859556494
A61: 09:32:00 | B61: 14976 | C61: 1837 | D61: 18361 | E61: 2689 | F61: 3385 | G61: 340.75 | H61: -1.32423351 | I61: 3.973004695
A62: 09:33:00 | B62: 14742 | C62: 1763 | D62: 18625 | E62: 2768 | F62: 3883 | G62: 340.85 | H62: -1.633198183 | I62: 3.863681592
A63: 09:34:00 | B63: 15426 | C63: 1935 | D63: 18115 | E63: 2620 | F63: 2689 | G63: 340.65 | H63: -1.057970886 | I63: 3.925547445
A64: 09:35:00 | B64: 15814 | C64: 2058 | D64: 17623 | E64: 2485 | F64: 1809 | G64: 340.5 | H64: -0.592408875 | I64: 4.236533958
A65: 09:36:00 | B65: 16164 | C65: 2144 | D65: 17480 | E65: 2462 | F65: 1316 | G65: 340.45 | H65: -0.4392603392 | I65: 4.13836478
A66: 09:37:00 | B66: 16455 | C66: 2218 | D66: 17054 | E66: 2320 | F66: 599 | G66: 340.25 | H66: -0.06798373807 | I66: 5.87254902
A67: 09:38:00 | B67: 16536 | C67: 2226 | D67: 17090 | E67: 2373 | F67: 554 | G67: 340.3 | H67: -0.2267172356 | I67: 3.768707483
A68: 09:39:00 | B68: 16530 | C68: 2218 | D68: 17125 | E68: 2384 | F68: 595 | G68: 340.3 | H68: -0.269354685 | I68: 3.584337349
A69: 09:40:00 | B69: 16460 | C69: 2220 | D69: 17168 | E69: 2417 | F69: 708 | G69: 340.25 | H69: -0.3113941413 | I69: 3.593908629
A70: 09:41:00 | B70: 16611 | C70: 2280 | D70: 17063 | E70: 2380 | F70: 452 | G70: 340.25 | H70: -0.1161985847 | I70: 4.52
A71: 09:42:00 | B71: 16221 | C71: 2147 | D71: 17525 | E71: 2505 | F71: 1304 | G71: 340.4 | H71: -0.5591853089 | I71: 3.642458101
A72: 09:43:00 | B72: 16215 | C72: 2158 | D72: 17593 | E72: 2495 | F72: 1378 | G72: 340.4 | H72: -0.4625991557 | I72: 4.089020772
A73: 09:44:00 | B73: 16327 | C73: 2173 | D73: 17511 | E73: 2479 | F73: 1184 | G73: 340.4 | H73: =(D73/E73)-(B73/C73) -> -0.4498403246 | I73: =(D73-B73)/(E73-C73) -> 3.869281046
A74: 09:45:00 | B74: 16309 | C74: 2155 | D74: 17594 | E74: 2493 | F74: 1285 | G74: 340.4 | H74: -0.5106208288 | I74: 3.801775148
A75: 09:46:00 | B75: 16650 | C75: 2223 | D75: 17078 | E75: 2382 | F75: 428 | G75: 340.25 | H75: -0.3202731689 | I75: 2.691823899
A76: 09:47:00 | B76: 16033 | C76: 2101 | D76: 18142 | E76: 2545 | F76: 2109 | G76: 340.45 | H76: -0.5026408044 | I76: 4.75
A77: 09:48:00 | B77: 15753 | C77: 2020 | D77: 18061 | E77: 2636 | F77: 2308 | G77: 340.55 | H77: -0.9468456557 | I77: 3.746753247
A78: 09:49:00 | B78: 15914 | C78: 2053 | D78: 17977 | E78: 2604 | F78: 2063 | G78: 340.6 | H78: -0.8479732182 | I78: 3.744101633
A79: 09:50:00 | B79: 16025 | C79: 2097 | D79: 17925 | E79: 2583 | F79: 1900 | G79: 340.45 | H79: -0.7022642268 | I79: 3.909465021
A80: 09:51:00 | B80: 16496 | C80: 2252 | D80: 17390 | E80: 2455 | F80: 894 | G80: 340.35 | H80: -0.24154135 | I80: 4.403940887
A81: 09:52:00 | B81: 16837 | C81: 2357 | D81: 16971 | E81: 2331 | F81: 134 | G81: 340.15 | H81: 0.1371636501 | I81: -5.153846154
A82: 09:53:00 | B82: 16663 | C82: 2286 | D82: 17136 | E82: 2400 | F82: 473 | G82: 340.25 | H82: -0.1491513561 | I82: 4.149122807
A83: 09:54:00 | B83: 16401 | C83: 2219 | D83: 17395 | E83: 2489 | F83: 994 | G83: 340.35 | H83: -0.4024166902 | I83: 3.681481481
A84: 09:55:00 | B84: 16373 | C84: 2208 | D84: 17504 | E84: 2514 | F84: 1131 | G84: 340.4 | H84: -0.4526985836 | I84: 3.696078431
A85: 09:56:00 | B85: 16917 | C85: 2347 | D85: 16903 | E85: 2353 | F85: -14 | G85: 340.2 | H85: -0.02432960054 | I85: -2.333333333
A86: 09:57:00 | B86: 17176 | C86: 2424 | D86: 16463 | E86: 2251 | F86: -713 | G86: 340 | H86: 0.2278298021 | I86: 4.121387283
A87: 09:58:00 | B87: 17070 | C87: 2377 | D87: 16385 | E87: 2277 | F87: -685 | G87: 340.05 | H87: 0.01455076824 | I87: =(D87-B87)/(E87-C87) -> 6.85
A88: 09:59:00 | B88: 17105 | C88: 2395 | D88: 16464 | E88: 2309 | F88: -641 | G88: 340 | H88: -0.01160295874 | I88: 7.453488372
A89: 10:00:00 | B89: 17267 | C89: 2441 | D89: 16328 | E89: 2272 | F89: -939 | G89: 339.95 | H89: 0.1128794479 | I89: 5.556213018
A90: 10:01:00 | B90: 17374 | C90: 2468 | D90: 16056 | E90: 2185 | F90: -1318 | G90: 339.85 | H90: 0.3085754871 | I90: =(D90-B90)/(E90-C90) -> 4.657243816
A91: 10:02:00 | B91: 17482 | C91: 2499 | D91: 15948 | E91: 2134 | F91: -1534 | G91: 339.8 | H91: 0.4776913577 | I91: 4.202739726
A92: 10:03:00 | B92: 16888 | C92: 2338 | D92: 16512 | E92: 2314 | F92: -376 | G92: 340 | H92: -0.0875719853 | I92: 15.66666667
A93: 10:04:00 | B93: 16834 | C93: 2317 | D93: 16596 | E93: 2323 | F93: -238 | G93: 340 | H93: -0.1212193614 | I93: -39.66666667
A94: 10:05:00 | B94: 16818 | C94: 2324 | D94: 16476 | E94: 2296 | F94: -342 | G94: 340 | H94: -0.06070274128 | I94: 12.21428571
A95: 10:06:00 | B95: 17269 | C95: 2431 | D95: 16118 | E95: 2177 | F95: -1151 | G95: 339.85 | H95: 0.3001056065 | I95: 4.531496063
A96: 10:07:00 | B96: 17171 | C96: 2409 | D96: 16226 | E96: 2219 | F96: -945 | G96: 339.85 | H96: 0.1844489578 | I96: 4.973684211
A97: 10:08:00 | B97: 17275 | C97: 2470 | D97: 16090 | E97: 2202 | F97: -1185 | G97: 339.8 | H97: 0.3130665166 | I97: =(D97-B97)/(E97-C97) -> 4.421641791
A98: 10:09:00 | B98: 17140 | C98: 2429 | D98: 16284 | E98: 2259 | F98: -856 | G98: 339.85 | H98: 0.1520975245 | I98: 5.035294118
A99: 10:10:00 | B99: 17229 | C99: 2439 | D99: 16259 | E99: 2260 | F99: -970 | G99: 339.85 | H99: 0.130287148 | I99: 5.418994413
A100: 10:11:00 | B100: 17064 | C100: 2393 | D100: 16489 | E100: 2308 | F100: -575 | G100: 339.95 | H100: 0.01348260126 | I100: 6.764705882
A101: 10:12:00 | B101: 17069 | C101: 2391 | D101: 16463 | E101: 2313 | F101: -606 | G101: 339.95 | H101: -0.02125784055 | I101: 7.769230769
A102: 10:13:00 | B102: 16674 | C102: 2271 | D102: 16868 | E102: 2450 | F102: 194 | G102: 340.1 | H102: -0.4572420672 | I102: 1.083798883
A103: 10:14:00 | B103: 16875 | C103: 2325 | D103: 16729 | E103: 2411 | F103: -146 | G103: 340 | H103: -0.3194498334 | I103: -1.697674419
A104: 10:15:00 | B104: 16703 | C104: 2288 | D104: 16860 | E104: 2460 | F104: 157 | G104: 340.05 | H104: -0.4466037012 | I104: 0.9127906977
A105: 10:16:00 | B105: 17310 | C105: 2470 | D105: 16179 | E105: 2220 | F105: -1131 | G105: 339.8 | H105: 0.2797406718 | I105: 4.524
A106: 10:17:00 | B106: 16703 | C106: 2283 | D106: 16773 | E106: 2419 | F106: 70 | G106: 340.05 | H106: -0.3823935818 | I106: 0.5147058824
A107: 10:18:00 | B107: 17202 | C107: 2430 | D107: 16388 | E107: 2297 | F107: -814 | G107: 339.95 | H107: 0.05551094557 | I107: 6.120300752
A108: 10:19:00 | B108: 17424 | C108: 2523 | D108: 16173 | E108: 2239 | F108: -1251 | G108: 339.85 | H108: 0.3172497702 | I108: 4.404929577
A109: 10:20:00 | B109: 17656 | C109: 2592 | D109: 16050 | E109: 2181 | F109: -1606 | G109: 339.8 | H109: 0.5472812335 | I109: 3.907542579
A110: 10:21:00 | B110: 17667 | C110: 2587 | D110: 16072 | E110: 2208 | F110: -1595 | G110: 339.75 | H110: 0.4498397786 | I110: 4.208443272
A111: 10:22:00 | B111: 17672 | C111: 2602 | D111: 16085 | E111: 2218 | F111: -1587 | G111: 339.8 | H111: 0.4603301615 | I111: 4.1328125
A112: 10:23:00 | B112: 17879 | C112: 2675 | D112: 15861 | E112: 2139 | F112: -2018 | G112: 339.65 | H112: 0.7314089473 | I112: 3.764925373
A113: 10:24:00 | B113: 17865 | C113: 2674 | D113: 15717 | E113: 2092 | F113: -2148 | G113: 339.6 | H113: 0.8319040659 | I113: 3.690721649
A114: 10:25:00 | B114: 18091 | C114: 2729 | D114: 15542 | E114: 2044 | F114: -2549 | G114: 339.45 | H114: 0.9745500061 | I114: 3.721167883
A115: 10:26:00 | B115: 18148 | C115: 2746 | D115: 15471 | E115: 2007 | F115: -2677 | G115: 339.45 | H115: 1.099634528 | I115: 3.622462788
A116: 10:27:00 | B116: 18064 | C116: 2673 | D116: 15473 | E116: 2023 | F116: -2591 | G116: 339.45 | H116: 0.8905919006 | I116: 3.986153846
A117: 10:28:00 | B117: 17826 | C117: 2601 | D117: 15537 | E117: 2059 | F117: -2289 | G117: 339.5 | H117: 0.6923781883 | I117: 4.223247232
A118: 10:29:00 | B118: 18040 | C118: 2672 | D118: 15395 | E118: 2009 | F118: -2645 | G118: 339.45 | H118: 0.9115194201 | I118: 3.989441931
A119: 10:30:00 | B119: 18168 | C119: 2730 | D119: 15304 | E119: 2001 | F119: -2864 | G119: 339.45 | H119: 0.9932308571 | I119: 3.92866941
A120: 10:31:00 | B120: 17941 | C120: 2627 | D120: 15374 | E120: 2007 | F120: -2567 | G120: 339.4 | H120: 0.8307260712 | I120: 4.140322581
A121: 10:32:00 | B121: 17964 | C121: 2615 | D121: 15462 | E121: 2037 | F121: -2502 | G121: 339.45 | H121: 0.7209759037 | I121: 4.328719723
A122: 10:33:00 | B122: 17935 | C122: 2615 | D122: 15592 | E122: 2082 | F122: -2343 | G122: 339.45 | H122: 0.6304443257 | I122: 4.39587242
A123: 10:34:00 | B123: 17803 | C123: 2599 | D123: 15710 | E123: 2130 | F123: -2093 | G123: 339.5 | H123: 0.525644569 | I123: 4.462686567
A124: 10:35:00 | B124: 17776 | C124: 2579 | D124: 15701 | E124: 2135 | F124: -2075 | G124: 339.55 | H124: 0.461504332 | I124: 4.673423423
A125: 10:36:00 | B125: 17556 | C125: 2520 | D125: 16004 | E125: 2166 | F125: -1552 | G125: 339.55 | H125: 0.4220683287 | I125: 4.384180791
A126: 10:37:00 | B126: 17728 | C126: 2563 | D126: 15999 | E126: 2167 | F126: -1729 | G126: 339.55 | H126: 0.4661237327 | I126: 4.366161616
A127: 10:38:00 | B127: 17464 | C127: 2478 | D127: 16234 | E127: 2212 | F127: -1230 | G127: 339.65 | H127: 0.2914406269 | I127: 4.62406015
A128: 10:39:00 | B128: 17018 | C128: 2369 | D128: 16559 | E128: 2317 | F128: -459 | G128: 339.75 | H128: -0.0368803053 | I128: 8.826923077
A129: 10:40:00 | B129: 17220 | C129: 2428 | D129: 16433 | E129: 2305 | F129: -787 | G129: 339.75 | H129: 0.03702716321 | I129: 6.398373984
A130: 10:41:00 | B130: 17359 | C130: 2472 | D130: 16307 | E130: 2284 | F130: -1052 | G130: 339.7 | H130: 0.1174180595 | I130: =(D130-B130)/(E130-C130) -> 5.595744681
A131: 10:42:00 | B131: 17553 | C131: 2535 | D131: 16115 | E131: 2237 | F131: -1438 | G131: 339.65 | H131: =(D131/E131)-(B131/C131) -> 0.2795840795 | I131: =(D131-B131)/(E131-C131) -> 4.825503356
A132: 10:43:00 | B132: 17697 | C132: 2579 | D132: 16005 | E132: 2195 | F132: -1692 | G132: 339.55 | H132: 0.4296097532 | I132: 4.40625
A133: 10:44:00 | B133: 17616 | C133: 2552 | D133: 15998 | E133: 2200 | F133: -1618 | G133: 339.6 | H133: 0.3689968652 | I133: 4.596590909
A134: 10:45:00 | B134: 17534 | C134: 2537 | D134: 16131 | E134: 2248 | F134: -1403 | G134: 339.65 | H134: =(D134/E134)-(B134/C134) -> 0.2643991699 | I134: =(D134-B134)/(E134-C134) -> 4.85467128
A135: 10:46:00 | B135: 17603 | C135: 2546 | D135: 16196 | E135: 2248 | F135: -1407 | G135: 339.6 | H135: =(D135/E135)-(B135/C135) -> 0.2906436165 | I135: =(D135-B135)/(E135-C135) -> 4.72147651
A136: 10:47:00 | B136: 17297 | C136: 2424 | D136: 16365 | E136: 2344 | F136: -932 | G136: 339.7 | H136: -0.1540707825 | I136: 11.65
A137: 10:48:00 | B137: 17329 | C137: 2446 | D137: 16389 | E137: 2355 | F137: -940 | G137: 339.75 | H137: -0.1253922952 | I137: 10.32967033
A138: 10:49:00 | B138: 17324 | C138: 2458 | D138: 16430 | E138: 2368 | F138: -894 | G138: 339.75 | H138: -0.1096619148 | I138: 9.933333333
A139: 10:50:00 | B139: 17186 | C139: 2383 | D139: 16639 | E139: 2437 | F139: -547 | G139: 339.8 | H139: -0.3842607955 | I139: -10.12962963
A140: 10:51:00 | B140: 17050 | C140: 2330 | D140: 16469 | E140: 2458 | F140: -581 | G140: 339.9 | H140: -0.6174338326 | I140: -4.5390625
A141: 10:52:00 | B141: 16513 | C141: 2165 | D141: 16984 | E141: 2565 | F141: 471 | G141: 340.05 | H141: -1.005809237 | I141: 1.1775
A142: 10:53:00 | B142: 16255 | C142: 2117 | D142: 17147 | E142: 2618 | F142: 892 | G142: 340.1 | H142: -1.128662149 | I142: 1.780439122
A143: 10:54:00 | B143: 16616 | C143: 2235 | D143: 16839 | E143: 2537 | F143: 223 | G143: 340 | H143: -0.7970849327 | I143: 0.738410596
A144: 10:55:00 | B144: 16829 | C144: 2289 | D144: 16693 | E144: 2509 | F144: -136 | G144: 339.95 | H144: -0.6988705231 | I144: -0.6181818182
A145: 10:56:00 | B145: 17152 | C145: 2404 | D145: 16277 | E145: 2389 | F145: -875 | G145: 339.85 | H145: -0.3214643656 | I145: 58.33333333
A146: 10:57:00 | B146: 17415 | C146: 2507 | D146: 16009 | E146: 2286 | F146: -1406 | G146: 339.75 | H146: 0.05651245629 | I146: 6.36199095
A147: 10:58:00 | B147: 17322 | C147: 2482 | D147: 16063 | E147: 2324 | F147: -1259 | G147: 339.75 | H147: -0.0672591367 | I147: 7.96835443
A148: 10:59:00 | B148: 17312 | C148: 2484 | D148: 16152 | E148: 2345 | F148: -1160 | G148: 339.75 | H148: -0.08155770492 | I148: 8.345323741
A149: 11:00:00 | B149: 17523 | C149: 2553 | D149: 15896 | E149: 2245 | F149: -1627 | G149: 339.7 | H149: 0.2169338313 | I149: 5.282467532
A150: 11:01:00 | B150: 17185 | C150: 2445 | D150: 16227 | E150: 2343 | F150: -958 | G150: 339.8 | H150: -0.1028936213 | I150: 9.392156863
A151: 11:02:00 | B151: 17372 | C151: 2483 | D151: 16052 | E151: 2301 | F151: -1320 | G151: 339.75 | H151: -0.02027800342 | I151: 7.252747253
A152: 11:03:00 | B152: 17287 | C152: 2479 | D152: 16139 | E152: 2334 | F152: -1148 | G152: 339.8 | H152: -0.05863771533 | I152: 7.917241379
A153: 11:04:00 | B153: 17723 | C153: 2601 | D153: 15724 | E153: 2185 | F153: -1999 | G153: 339.65 | H153: 0.3824209488 | I153: 4.805288462
A154: 11:05:00 | B154: 17799 | C154: 2616 | D154: 15599 | E154: 2137 | F154: -2200 | G154: 339.6 | H154: 0.4955861771 | I154: 4.592901879
A155: 11:06:00 | B155: 17559 | C155: 2534 | D155: 15748 | E155: 2195 | F155: -1811 | G155: 339.6 | H155: 0.245126777 | I155: 5.342182891
A156: 11:07:00 | B156: 17507 | C156: 2513 | D156: 15827 | E156: 2219 | F156: -1680 | G156: 339.65 | H156: 0.1659182974 | I156: 5.714285714
A157: 11:08:00 | B157: 17395 | C157: 2463 | D157: 16103 | E157: 2301 | F157: -1292 | G157: 339.75 | H157: -0.06426375018 | I157: 7.975308642
A158: 11:09:00 | B158: 17140 | C158: 2407 | D158: 16197 | E158: 2356 | F158: -943 | G158: 339.8 | H158: -0.2461096067 | I158: 18.49019608
A159: 11:10:00 | B159: 17318 | C159: 2446 | D159: 16078 | E159: 2308 | F159: -1240 | G159: 339.75 | H159: -0.1139263198 | I159: 8.985507246
A160: 11:11:00 | B160: 17572 | C160: 2527 | D160: 15855 | E160: 2238 | F160: -1717 | G160: 339.65 | H160: 0.1307503626 | I160: 5.941176471
A161: 11:12:00 | B161: 17556 | C161: 2518 | D161: 15868 | E161: 2255 | F161: -1688 | G161: 339.65 | H161: 0.06460693649 | I161: 6.418250951
A162: 11:13:00 | B162: 17166 | C162: 2420 | D162: 16297 | E162: 2346 | F162: -869 | G162: 339.75 | H162: -0.1466706122 | I162: 11.74324324
A163: 11:14:00 | B163: 16768 | C163: 2318 | D163: 16683 | E163: 2451 | F163: -85 | G163: 339.9 | H163: -0.4272127134 | I163: -0.6390977444
A164: 11:15:00 | B164: 17079 | C164: 2398 | D164: 16396 | E164: 2387 | F164: -683 | G164: 339.85 | H164: -0.2533120919 | I164: 62.09090909
A165: 11:16:00 | B165: 17013 | C165: 2375 | D165: 16474 | E165: 2388 | F165: -539 | G165: 339.85 | H165: -0.2647084546 | I165: -41.46153846
A166: 11:17:00 | B166: 17179 | C166: 2432 | D166: 16318 | E166: 2337 | F166: -861 | G166: 339.8 | H166: -0.08127741228 | I166: 9.063157895
A167: 11:18:00 | B167: 17277 | C167: 2458 | D167: 16122 | E167: 2317 | F167: -1155 | G167: 339.75 | H167: -0.07074975251 | I167: 8.191489362
A168: 11:19:00 | B168: 17265 | C168: 2458 | D168: 16167 | E168: 2323 | F168: -1098 | G168: 339.75 | H168: -0.06446817074 | I168: 8.133333333
A169: 11:20:00 | B169: 17357 | C169: 2487 | D169: 16134 | E169: 2308 | F169: -1223 | G169: 339.7 | H169: 0.01137666298 | I169: 6.832402235
A170: 11:21:00 | B170: 17458 | C170: 2519 | D170: 16023 | E170: 2299 | F170: -1435 | G170: 339.65 | H170: 0.03902399182 | I170: 6.522727273
A171: 11:22:00 | B171: 17419 | C171: 2517 | D171: 16058 | E171: 2323 | F171: -1361 | G171: 339.7 | H171: -0.007927325354 | I171: 7.015463918
A172: 11:23:00 | B172: 17740 | C172: 2626 | D172: 15725 | E172: 2191 | F172: -2015 | G172: 339.55 | H172: 0.4215663816 | I172: 4.632183908
A173: 11:24:00 | B173: 17746 | C173: 2627 | D173: 15748 | E173: 2209 | F173: -1998 | G173: 339.6 | H173: 0.3737835477 | I173: 4.779904306
A174: 11:25:00 | B174: 17631 | C174: 2580 | D174: 15886 | E174: 2252 | F174: -1745 | G174: 339.65 | H174: 0.2204531373 | I174: 5.320121951
A175: 11:26:00 | B175: 17778 | C175: 2640 | D175: 15726 | E175: 2210 | F175: -2052 | G175: 339.6 | H175: 0.381746195 | I175: 4.772093023
A176: 11:27:00 | B176: 17610 | C176: 2575 | D176: 15896 | E176: 2271 | F176: -1714 | G176: 339.6 | H176: 0.1607247139 | I176: 5.638157895
A177: 11:28:00 | B177: 17760 | C177: 2624 | D177: 15751 | E177: 2226 | F177: -2009 | G177: 339.6 | H177: 0.3076282515 | I177: 5.047738693
A178: 11:29:00 | B178: 17782 | C178: 2640 | D178: 15777 | E178: 2226 | F178: -2005 | G178: 339.55 | H178: 0.3519950176 | I178: 4.842995169
A179: 11:30:00 | B179: 17917 | C179: 2675 | D179: 15543 | E179: 2147 | F179: -2374 | G179: 339.5 | H179: 0.541459894 | I179: 4.496212121
A180: 11:31:00 | B180: 17907 | C180: 2702 | D180: 15606 | E180: 2176 | F180: -2301 | G180: 339.55 | H180: 0.5445618986 | I180: 4.374524715
A181: 11:32:00 | B181: 18075 | C181: 2760 | D181: 15624 | E181: 2117 | F181: -2451 | G181: 339.45 | H181: 0.8313420345 | I181: 3.811819596
A182: 11:33:00 | B182: 18013 | C182: 2709 | D182: 15561 | E182: 2142 | F182: -2452 | G182: 339.5 | H182: 0.6153887912 | I182: 4.324514991
A183: 11:34:00 | B183: 18162 | C183: 2763 | D183: 15393 | E183: 2103 | F183: -2769 | G183: 339.4 | H183: 0.746253607 | I183: 4.195454545
A184: 11:35:00 | B184: 18023 | C184: 2712 | D184: 15538 | E184: 2163 | F184: -2485 | G184: 339.45 | H184: 0.5378924102 | I184: 4.526411658
A185: 11:36:00 | B185: 18170 | C185: 2759 | D185: 15439 | E185: 2125 | F185: -2731 | G185: 339.45 | H185: 0.6796923011 | I185: 4.307570978
A186: 11:37:00 | B186: 18148 | C186: 2760 | D186: 15502 | E186: 2121 | F186: -2646 | G186: 339.45 | H186: 0.7334542771 | I186: 4.14084507
A187: 11:38:00 | B187: 18343 | C187: 2797 | D187: 15113 | E187: 1968 | F187: -3230 | G187: 339.3 | H187: 1.121271957 | I187: 3.896260555
A188: 11:39:00 | B188: 18121 | C188: 2736 | D188: 15367 | E188: 2056 | F188: -2754 | G188: 339.4 | H188: 0.8510492753 | I188: 4.05
A189: 11:40:00 | B189: 18366 | C189: 2807 | D189: 15182 | E189: 2009 | F189: -3184 | G189: 339.3 | H189: 1.014065136 | I189: 3.989974937
A190: 11:41:00 | B190: 18313 | C190: 2794 | D190: 15298 | E190: 2016 | F190: -3015 | G190: 339.35 | H190: 1.03389136 | I190: 3.875321337
A191: 11:42:00 | B191: 18309 | C191: 2794 | D191: 15255 | E191: 2015 | F191: -3054 | G191: 339.3 | H191: 1.017748952 | I191: 3.920410783
A192: 11:43:00 | B192: 18082 | C192: 2719 | D192: 15431 | E192: 2067 | F192: -2651 | G192: 339.4 | H192: 0.8151697466 | I192: 4.06595092
A193: 11:44:00 | B193: 18108 | C193: 2702 | D193: 15471 | E193: 2095 | F193: -2637 | G193: 339.4 | H193: 0.6830230944 | I193: 4.34431631
A194: 11:45:00 | B194: 18001 | C194: 2689 | D194: 15587 | E194: 2121 | F194: -2414 | G194: 339.45 | H194: 0.6545818796 | I194: 4.25
A195: 11:46:00 | B195: 18103 | C195: 2711 | D195: 15482 | E195: 2093 | F195: -2621 | G195: 339.4 | H195: 0.7194280068 | I195: 4.241100324
A196: 11:47:00 | B196: 18042 | C196: 2695 | D196: 15585 | E196: 2131 | F196: -2457 | G196: 339.45 | H196: 0.6188481894 | I196: 4.356382979
A197: 11:48:00 | B197: 18094 | C197: 2733 | D197: 15524 | E197: 2116 | F197: -2570 | G197: 339.45 | H197: 0.7159204486 | I197: 4.165316045
A198: 11:49:00 | B198: 18389 | C198: 2825 | D198: 15168 | E198: 2005 | F198: -3221 | G198: 339.3 | H198: 1.055706751 | I198: 3.92804878
A199: 11:50:00 | B199: 18324 | C199: 2801 | D199: 15184 | E199: 2015 | F199: -3140 | G199: 339.3 | H199: =(D199/E199)-(B199/C199) -> 0.9935345671 | I199: =(D199-B199)/(E199-C199) -> 3.994910941
A200: 11:51:00 | B200: 18276 | C200: 2791 | D200: 15277 | E200: 2055 | F200: -2999 | G200: 339.3 | H200: 0.8858726477 | I200: 4.074728261
A201: 11:52:00 | B201: 18406 | C201: 2849 | D201: 15140 | E201: 2030 | F201: -3266 | G201: 339.25 | H201: 0.9976156183 | I201: 3.987789988
A202: 11:53:00 | B202: 18206 | C202: 2759 | D202: 15353 | E202: 2085 | F202: -2853 | G202: 339.35 | H202: 0.7647814912 | I202: 4.232937685
A203: 11:54:00 | B203: 18280 | C203: 2773 | D203: 15326 | E203: 2088 | F203: -2954 | G203: 339.35 | H203: 0.747899836 | I203: 4.312408759
... 232 more rows

Sheet 2. 순매수에 따른 익일가격 (hidden)
I1: 15:35:00 | T1: 15:45:00 | AB1: 발생횟수 | AC1: 성공횟수 | AD1: 확률
B2: 날짜 | C2: 시간 | D2: 매도총잔량 | E2: 매도건수 | F2: 매수총잔량 | G2: 매수건수 | H2: 순매수총잔량 | I2: 선물지수 | J2: 순매수건수 | K2: 평균계약수 | M2: 날짜 | N2: 시간 | O2: 매도총잔량 | P2: 매도건수 | Q2: 매수총잔량 | R2: 매수건수 | S2: 순매수총잔량 | T2: 선물지수 | U2: 순매수건수 | V2: 평균계약수 | W2: 종가 | Y2: 순매수총잔량 | Z2: 시작가 | AA2: 일치여부 | AB2: =COUNTA(AA4:AA1000) -> 45 | AC2: =COUNTIF(AA4:AA1000,"성공") -> 25 | AD2: =AC2/AB2 -> 0.5555555556
B3: 2023-10-12 | C3: 15:35:00 | D3: 9508 | E3: 1216 | F3: 15618 | G3: 2033 | H3: 6110 | I3: 330.4 | J3: -0.1368359567 | K3: 7.478580171 | M3: 2023-10-12 | N3: 15:46:00 | O3: 10474 | P3: 1101 | Q3: 13874 | R3: 1542 | S3: 3400 | T3: 330.45 | U3: -0.5157638793 | V3: 7.709750567 | W3: =T3 -> 330.45 | Y3: =IF(H3>S3,"하락","상승") -> 하락 | AB3: 순매수총잔량 증감율
A4: 금 | B4: 2023-10-13 | C4: 15:35:00 | D4: 14867 | E4: 1854 | F4: 13866 | G4: 1712 | H4: -1001 | I4: 327.45 | J4: 0.08042096402 | K4: 7.049295775 | M4: 2023-10-13 | N4: 15:46:00 | O4: 11298 | P4: 1240 | Q4: 11489 | R4: 1268 | S4: 191 | T4: 327.85 | U4: -0.05056477053 | V4: 6.821428571 | W4: 327.85 | Y4: 상승 | Z4: 327.45 | AA4: =IF(AND(Y3="상승",Z4>W3),"성공",IF(AND(Y3="하락",Z4<W3),"성공",IF(AND(Y3="상승",Z4=W3),"동일가",IF(AND(Y3="하락",Z4=W3),"동일가","실패")))) -> 성공 | AB4: =S4/H4-1 -> -1.190809191
B5: 2023-10-16 | C5: 15:35:00 | D5: 15940 | E5: 1970 | F5: 11709 | G5: 1602 | H5: -4231 | I5: 325.05 | J5: -0.7823817943 | K5: 11.49728261 | M5: 2023-10-16 | N5: 15:46:00 | O5: 7849 | P5: 1022 | Q5: 5360 | R5: 774 | S5: -2489 | T5: 324.85 | U5: -0.7549745395 | V5: 10.03629032 | W5: 324.85 | Y5: =IF(H5>S5,"하락","상승") -> 상승 | Z5: 326.2 | AA5: 실패 | AB5: -0.4117229969
B6: 2023-10-17 | C6: 15:35:00 | D6: 13240 | E6: 1889 | F6: 17947 | G6: 2371 | H6: 4707 | I6: 328.7 | J6: 0.5603805378 | K6: 9.765560166 | M6: 2023-10-17 | N6: 15:46:00 | O6: 4526 | P6: 1045 | Q6: 8044 | R6: 1103 | S6: 3518 | T6: 328.8 | U6: 2.961737237 | V6: 60.65517241 | W6: 328.8 | Y6: 하락 | Z6: 327.15 | AA6: 성공 | AB6: -0.2526025069
B7: 2023-10-18 | C7: 15:35:00 | D7: 12859 | E7: 1924 | F7: 19132 | G7: 2629 | H7: 6273 | I7: 330.15 | J7: 0.5938198124 | K7: 8.89787234 | M7: 2023-10-18 | N7: 15:46:00 | O7: 5359 | P7: 994 | Q7: 9271 | R7: 1403 | S7: 3912 | T7: 330.2 | U7: 1.216634805 | V7: 9.564792176 | W7: 330.2 | Y7: 하락 | Z7: 327.95 | AA7: 성공 | AB7: -0.3763749402
B8: 2023-10-19 | C8: 15:35:00 | D8: 21327 | E8: 2960 | F8: 9834 | G8: 1197 | H8: -11493 | I8: 323.7 | J8: 1.01047128 | K8: 6.519001702 | M8: 2023-10-19 | N8: 15:46:00 | O8: 9871 | P8: 1718 | Q8: 5219 | R8: 684 | S8: -4652 | T8: 323.7 | U8: 1.8844825 | V8: 4.499032882 | W8: 323.7 | Y8: 상승 | Z8: 326.5 | AA8: 성공 | AB8: -0.5952318803
A9: 금 | B9: 2023-10-20 | C9: 15:35:00 | D9: 18708 | E9: 2366 | F9: 11741 | G9: 1732 | H9: -6967 | I9: 319.1 | J9: -0.263889643 | K9: 7.72796518 | M9: 2023-10-20 | N9: 15:46:00 | O9: 9208 | P9: 1203 | Q9: 6245 | R9: 949 | S9: -2963 | T9: 318.85 | U9: -1.073586669 | V9: 11.66535433 | W9: 318.85 | Y9: 상승 | Z9: 321 | AA9: 실패 | AB9: -0.5747093441
B10: 2023-10-23 | C10: 15:35:00 | D10: 14892 | E10: 2334 | F10: 14494 | G10: 1833 | H10: -398 | I10: 317.15 | J10: 1.52679314 | K10: 0.7944111776 | M10: 2023-10-23 | N10: 15:46:00 | O10: 8073 | P10: 1395 | Q10: 6831 | R10: 945 | S10: -1242 | T10: 317 | U10: 1.441474654 | V10: 2.76 | W10: 317 | Y10: 하락 | Z10: 317.15 | AA10: =IF(AND(Y9="상승",Z10>W9),"성공",IF(AND(Y9="하락",Z10<W9),"성공",IF(AND(Y9="상승",Z10=W9),"동일가",IF(AND(Y9="하락",Z10=W9),"동일가","실패")))) -> 실패 | AB10: =S10/H10-1 -> 2.120603015
B11: 2023-10-24 | C11: 15:35:00 | D11: 11514 | E11: 1530 | F11: 17453 | G11: 2719 | H11: 5939 | I11: 319.65 | J11: -1.106586187 | K11: 4.994953743 | M11: 2023-10-24 | N11: 15:46:00 | O11: 5906 | P11: 849 | Q11: 7700 | R11: 1211 | S11: 1794 | T11: 319.55 | U11: -0.598037814 | V11: 4.955801105 | W11: 319.55 | Y11: 하락 | Z11: 318.55 | AA11: 실패 | AB11: -0.6979289443
B12: 2023-10-25 | C12: 15:35:00 | D12: 18960 | E12: 2689 | F12: 10553 | G12: 1355 | H12: -8407 | I12: 317.75 | J12: 0.9912027057 | K12: 5.52532391 | M12: 2023-10-25 | N12: 15:46:00 | O12: 8726 | P12: 1370 | Q12: 4076 | R12: 566 | S12: -4650 | T12: 317.85 | U12: 0.8320703619 | V12: 5.78358209 | W12: 317.85 | Y12: 상승 | Z12: 320.3 | AA12: 실패 | AB12: -0.4468894968
B13: 2023-10-26 | C13: 15:35:00 | D13: 20611 | E13: 2970 | F13: 8651 | G13: 1141 | H13: -11960 | I13: 309.4 | J13: 0.5471770049 | K13: 6.249262537 | M13: 2023-10-26 | N13: 15:46:00 | O13: 8791 | P13: 1423 | Q13: 6158 | R13: 680 | S13: -2633 | T13: 309.15 | U13: 2.878088959 | V13: 3.543741588 | W13: 309.15 | Y13: =IF(H13>S13,"하락","상승") -> 상승 | Z13: 312.95 | AA13: 실패 | AB13: -0.7798494983
A14: 금 | B14: 2023-10-27 | C14: 15:35:00 | D14: 14273 | E14: 2133 | F14: 13278 | G14: 1990 | H14: -995 | I14: 309.5 | J14: -0.01915249006 | K14: 6.958041958 | M14: 2023-10-27 | N14: 15:46:00 | O14: 7000 | P14: 1081 | Q14: 6563 | R14: 956 | S14: -437 | T14: 309.2 | U14: 0.3895771001 | V14: 3.496 | W14: 309.2 | Y14: 상승 | Z14: 309.95 | AA14: 성공 | AB14: -0.5608040201
B15: 2023-10-30 | C15: 15:35:00 | D15: 10351 | E15: 1519 | F15: 18337 | G15: 2271 | H15: 7986 | I15: 310.3 | J15: 1.26006501 | K15: 10.61968085 | M15: 2023-10-30 | N15: 15:46:00 | O15: 3324 | P15: 627 | Q15: 7833 | R15: 941 | S15: 4509 | T15: 310.2 | U15: 3.022687866 | V15: 14.35987261 | W15: 310.2 | Y15: 하락 | Z15: 307.25 | AA15: 실패 | AB15: -0.4353869271
B16: 2023-10-31 | C16: 15:35:00 | D16: 19479 | E16: 2879 | F16: 10061 | G16: 1313 | H16: -9418 | I16: 306.75 | J16: 0.8967137877 | K16: 6.014048531 | M16: 2023-10-31 | N16: 15:46:00 | O16: 9313 | P16: 1622 | Q16: 4459 | R16: 643 | S16: -4854 | T16: 307.1 | U16: 1.19300424 | V16: 4.958120531 | W16: 307.1 | Y16: 상승 | Z16: 311.65 | AA16: =IF(AND(Y15="상승",Z16>W15),"성공",IF(AND(Y15="하락",Z16<W15),"성공",IF(AND(Y15="상승",Z16=W15),"동일가",IF(AND(Y15="하락",Z16=W15),"동일가","실패")))) -> 실패 | AB16: =S16/H16-1 -> -0.4846039499
B17: 2023-11-01 | C17: 15:35:00 | D17: 12505 | E17: 1840 | F17: 18703 | G17: 2301 | H17: 6198 | I17: 310.8 | J17: 1.332009476 | K17: 13.44468547 | M17: 2023-11-01 | N17: 15:46:00 | O17: 6095 | P17: 1011 | Q17: 7729 | R17: 1068 | S17: 1634 | T17: 311.05 | U17: 1.208206915 | V17: 28.66666667 | W17: 311.05 | Y17: 하락 | Z17: 308.4 | AA17: 성공 | AB17: -0.7363665699
B18: 2023-11-02 | C18: 15:35:00 | D18: 15256 | E18: 2159 | F18: 17094 | G18: 1861 | H18: 1838 | I18: 315.9 | J18: 2.119149834 | K18: -6.167785235 | M18: 2023-11-02 | N18: 15:46:00 | O18: 7632 | P18: 1221 | Q18: 7674 | R18: 962 | S18: 42 | T18: 316.15 | U18: 1.726516727 | V18: -0.1621621622 | W18: 316.15 | Y18: 하락 | Z18: 316.05 | AA18: 실패 | AB18: -0.9771490751
A19: 금 | B19: 2023-11-03 | C19: 15:35:00 | D19: 15120 | E19: 2050 | F19: 15477 | G19: 1950 | H19: 357 | I19: 319.5 | J19: 0.5613133208 | K19: -3.57 | M19: 2023-11-03 | N19: 15:45:00 | O19: 14160 | P19: 1654 | Q19: 13848 | R19: 1299 | S19: -312 | T19: 319.6 | U19: 2.099443996 | V19: 0.8788732394 | W19: 319.6 | Y19: =IF(H19>S19,"하락","상승") -> 하락 | Z19: 319.7 | AA19: 실패 | AB19: -1.87394958
B20: 2023-11-06 | C20: 15:35:00 | D20: 3920 | E20: 606 | F20: 24897 | G20: 3711 | H20: 20977 | I20: 334.4 | J20: 0.2403264579 | K20: 6.755877617 | M20: 2023-11-06 | N20: 15:45:00 | O20: 16699 | P20: 1125 | Q20: 25667 | R20: 2368 | S20: 8968 | T20: 335.3 | U20: -4.004450826 | V20: 7.214802896 | W20: 335.3 | Y20: 하락 | Z20: 324 | AA20: 실패 | AB20: -0.5724841493
B21: 2023-11-07 | C21: 15:35:00 | D21: 16844 | E21: 2310 | F21: 13014 | G21: 1871 | H21: -3830 | I21: 328.4 | J21: -0.3361361959 | K21: 8.724373576 | M21: 2023-11-07 | N21: 15:45:00 | O21: 18430 | P21: 1499 | Q21: 16567 | R21: 1414 | S21: -1863 | T21: 328.4 | U21: -0.5784558871 | V21: 21.91764706 | W21: 328.4 | Y21: 상승 | Z21: 334.9 | AA21: 성공 | AB21: -0.5135770235
B22: 2023-11-08 | C22: 15:35:00 | D22: 18810 | E22: 2785 | F22: 7789 | G22: 1052 | H22: -11021 | I22: 324.9 | J22: 0.6499528981 | K22: 6.35949221 | M22: 2023-11-08 | N22: 15:45:00 | O22: 16585 | P22: 2058 | Q22: 10002 | R22: 923 | S22: -6583 | T22: 325.1 | U22: 2.777608087 | V22: 5.8 | W22: 325.1 | Y22: 상승 | Z22: 331.1 | AA22: =IF(AND(Y21="상승",Z22>W21),"성공",IF(AND(Y21="하락",Z22<W21),"성공",IF(AND(Y21="상승",Z22=W21),"동일가",IF(AND(Y21="하락",Z22=W21),"동일가","실패")))) -> 성공 | AB22: =S22/H22-1 -> -0.4026857817
B23: 2023-11-09 | C23: 15:35:00 | D23: 13157 | E23: 1940 | F23: 8442 | G23: 726 | H23: -4715 | I23: 326.65 | J23: 4.846140411 | K23: 3.883855025 | M23: 2023-11-09 | N23: 15:45:00 | O23: 19892 | P23: 2460 | Q23: 11790 | R23: 1098 | S23: -8102 | T23: 326.7 | U23: 2.651526056 | V23: 5.948604993 | W23: =T23 -> 326.7 | Y23: 하락 | Z23: 325.95 | AA23: 성공 | AB23: 0.7183457052
A24: 금 | B24: 2023-11-10 | C24: 15:35:00 | D24: 14965 | E24: 2234 | F24: 15837 | G24: 2507 | H24: 872 | I24: 324.65 | J24: -0.3816345566 | K24: 3.194139194 | M24: 2023-11-10 | N24: 15:45:00 | O24: 12537 | P24: 1437 | Q24: 13881 | R24: 1574 | S24: 1344 | T24: 324.7 | U24: 0.09450676839 | V24: 9.810218978 | W24: 324.7 | Y24: 상승 | Z24: 324 | AA24: 성공 | AB24: 0.5412844037
B25: 2023-11-13 | C25: 15:35:00 | D25: 14877 | E25: 1935 | F25: 10824 | G25: 1241 | H25: -4053 | I25: 324.75 | J25: 1.033626295 | K25: 5.840057637 | M25: 2023-11-13 | N25: 15:45:00 | O25: 14131 | P25: 1907 | Q25: 10515 | R25: 1203 | S25: -3616 | T25: 325.1 | U25: 1.330580209 | V25: 5.136363636 | W25: 325.1 | Y25: =IF(H25>S25,"하락","상승") -> 상승 | Z25: 328.25 | AA25: 성공 | AB25: -0.1078213669
B26: 2023-11-14 | C26: 15:35:00 | D26: 13349 | E26: 1970 | F26: 15127 | G26: 2091 | H26: 1778 | I26: 327.65 | J26: 0.4581955055 | K26: 14.69421488 | M26: 2023-11-14 | N26: 15:45:00 | O26: 11995 | P26: 1573 | Q26: 13193 | R26: 1354 | S26: 1198 | T26: 327.8 | U26: 2.118166042 | V26: -5.470319635 | W26: 327.8 | Y26: 하락 | Z26: 326.6 | AA26: 성공 | AB26: -0.3262092238
B27: 2023-11-15 | C27: 15:35:00 | D27: 12553 | E27: 1770 | F27: 21897 | G27: 2890 | H27: 9344 | I27: 335.1 | J27: 0.4847262135 | K27: 8.342857143 | M27: 2023-11-15 | N27: 15:45:00 | O27: 13505 | P27: 1574 | Q27: 20304 | R27: 2003 | S27: 6799 | T27: 335.25 | U27: 1.556743982 | V27: 15.84848485 | W27: 335.25 | Y27: 하락 | Z27: 334.8 | AA27: 실패 | AB27: -0.2723672945
B28: 2023-11-16 | C28: 16:35:00 | D28: 15736 | E28: 1972 | F28: 15449 | G28: 1947 | H28: -287 | I28: 334.7 | J28: -0.04494458109 | K28: 11.48 | M28: 2023-11-16 | N28: 16:45:00 | O28: 14323 | P28: 1656 | Q28: 12603 | R28: 1365 | S28: -1720 | T28: 334.55 | U28: 0.5838124436 | V28: 5.910652921 | W28: 334.55 | Y28: 하락 | Z28: 334.35 | AA28: 성공 | AB28: 4.993031359
A29: 금 | B29: 2023-11-17 | C29: 15:35:00 | D29: 14539 | E29: 1874 | F29: 13556 | G29: 1595 | H29: -983 | I29: 333.05 | J29: 0.7407884832 | K29: 3.523297491 | M29: 2023-11-17 | N29: 15:45:00 | O29: 7777 | P29: 1096 | Q29: 5924 | R29: 838 | S29: -1853 | T29: 333.1 | U29: -0.02659050921 | V29: 7.182170543 | W29: 333.1 | Y29: 하락 | Z29: 334.2 | AA29: =IF(AND(Y28="상승",Z29>W28),"성공",IF(AND(Y28="하락",Z29<W28),"성공",IF(AND(Y28="상승",Z29=W28),"동일가",IF(AND(Y28="하락",Z29=W28),"동일가","실패")))) -> 성공 | AB29: =S29/H29-1 -> 0.8850457782
B30: 2023-11-20 | C30: 15:35:00 | D30: 11499 | E30: 1434 | F30: 19554 | G30: 2835 | H30: 8055 | I30: 335.55 | J30: -1.121473955 | K30: 5.749464668 | M30: 2023-11-20 | N30: 15:45:00 | O30: 4624 | P30: 708 | Q30: 8556 | R30: 1362 | S30: 3932 | T30: 335.55 | U30: -0.2491351203 | V30: 6.012232416 | W30: 335.55 | Y30: 하락 | Z30: 332.35 | AA30: 성공 | AB30: -0.5118559901
B31: 2023-11-21 | C31: 15:35:00 | D31: 13571 | E31: 1720 | F31: 13268 | G31: 1747 | H31: -303 | I31: 337.2 | J31: -0.2953824496 | K31: -11.22222222 | M31: 2023-11-21 | N31: 15:45:00 | O31: 6977 | P31: 1040 | Q31: 6827 | R31: 975 | S31: -150 | T31: 337.45 | U31: 0.2933974359 | V31: 2.307692308 | W31: 337.45 | Y31: =IF(H31>S31,"하락","상승") -> 상승 | Z31: 338 | AA31: 실패 | AB31: -0.504950495
B32: 2023-11-22 | C32: 15:35:00 | D32: 12155 | E32: 1603 | F32: 21455 | G32: 3128 | H32: 9300 | I32: 337.75 | J32: -0.7236421719 | K32: 6.098360656 | M32: 2023-11-22 | N32: 15:45:00 | O32: 9124 | P32: 1080 | Q32: 16184 | R32: 1840 | S32: 7060 | T32: 338 | U32: 0.3475040258 | V32: 9.289473684 | W32: 338 | Y32: 하락 | Z32: 335 | AA32: 실패 | AB32: -0.2408602151
B33: 2023-11-23 | C33: 15:35:00 | D33: 11017 | E33: 1962 | F33: 11446 | G33: 1862 | H33: 429 | I33: 337.6 | J33: 0.5319650152 | K33: -4.29 | M33: 2023-11-23 | N33: 15:45:00 | O33: 9842 | P33: 1464 | Q33: 11671 | R33: 1161 | S33: 1829 | T33: 337.95 | U33: 3.329863317 | V33: -6.03630363 | W33: 337.95 | Y33: 상승 | Z33: 337.45 | AA33: 성공 | AB33: 3.263403263
A34: 금 | B34: 2023-11-24 | C34: 15:35:00 | D34: 14724 | E34: 2624 | F34: 8163 | G34: 1053 | H34: -6561 | I34: 334.75 | J34: 2.140856264 | K34: 4.176320815 | M34: 2023-11-24 | N34: 15:45:00 | O34: 14916 | P34: 2014 | Q34: 8718 | R34: 815 | S34: -6198 | T34: 334.7 | U34: 3.290775614 | V34: 5.169307756 | W34: 334.7 | Y34: 상승 | Z34: 337.2 | AA34: 실패 | AB34: -0.05532693187
B35: 2023-11-27 | C35: 15:35:00 | D35: 16972 | E35: 2558 | F35: 14481 | G35: 1862 | H35: -2491 | I35: 334.2 | J35: 1.142250382 | K35: 3.579022989 | M35: 2023-11-27 | N35: 15:45:00 | O35: 11748 | P35: 1759 | Q35: 12065 | R35: 1236 | S35: 317 | T35: 334.2 | U35: 3.082532091 | V35: -0.6061185468 | W35: 334.2 | Y35: 상승 | Z35: 334.35 | AA35: 실패 | AB35: -1.127258129
B36: 2023-11-28 | C36: 15:35:00 | D36: 10701 | E36: 1284 | F36: 19672 | G36: 3042 | H36: 8971 | I36: 338.25 | J36: -1.86731399 | K36: 5.102957907 | M36: 2023-11-28 | N36: 15:45:00 | O36: 10306 | P36: 1177 | Q36: 16153 | R36: 1705 | S36: 5847 | T36: 338.4 | U36: 0.7177405651 | V36: 11.07386364 | W36: 338.4 | Y36: 하락 | Z36: 335.75 | AA36: =IF(AND(Y35="상승",Z36>W35),"성공",IF(AND(Y35="하락",Z36<W35),"성공",IF(AND(Y35="상승",Z36=W35),"동일가",IF(AND(Y35="하락",Z36=W35),"동일가","실패")))) -> 성공 | AB36: =S36/H36-1 -> -0.3482331959
B37: 2023-11-29 | C37: 15:35:00 | D37: 13518 | E37: 1890 | F37: 16056 | G37: 2344 | H37: 2538 | I37: 337.3 | J37: -0.3025516008 | K37: 5.59030837 | M37: 2023-11-29 | N37: 15:45:00 | O37: 9769 | P37: 1267 | Q37: 12661 | R37: 1346 | S37: 2892 | T37: 337.55 | U37: 1.696049917 | V37: 36.60759494 | W37: 337.55 | Y37: =IF(H37>S37,"하락","상승") -> 상승 | Z37: 338.35 | AA37: 성공 | AB37: 0.1394799054
B38: 2023-11-30 | C38: 15:35:00 | D38: 12252 | E38: 1347 | F38: 20299 | G38: 2994 | H38: 8047 | I38: 339.05 | J38: -2.315875255 | K38: 4.885853066 | M38: 2023-11-30 | N38: 15:45:00 | O38: 12711 | P38: 1064 | Q38: 15831 | R38: 1811 | S38: 3120 | T38: 339.15 | U38: -3.204849333 | V38: 4.176706827 | W38: 339.15 | Y38: 하락 | Z38: 337.05 | AA38: 실패 | AB38: -0.6122778675
A39: 금 | B39: 2023-12-01 | C39: 15:35:00 | D39: 16548 | E39: 2482 | F39: 11783 | G39: 1535 | H39: -4765 | I39: 335.15 | J39: 1.009017631 | K39: 5.031678986 | M39: 2023-12-01 | N39: 15:45:00 | O39: 13881 | P39: 1676 | Q39: 10641 | R39: 1152 | S39: -3240 | T39: 335.5 | U39: 0.9547595963 | V39: 6.183206107 | W39: 335.5 | Y39: 상승 | Z39: 337.75 | AA39: 성공 | AB39: -0.3200419727
B40: 2023-12-04 | C40: 15:35:00 | D40: 14822 | E40: 1997 | F40: 14749 | G40: 1800 | H40: -73 | I40: 336.7 | J40: 0.7717556891 | K40: 0.3705583756 | M40: 2023-12-04 | N40: 15:45:00 | O40: 12105 | P40: 1572 | Q40: 11318 | R40: 1157 | S40: -787 | T40: 336.7 | U40: 2.081813653 | V40: 1.896385542 | W40: 336.7 | Y40: 하락 | Z40: 337.05 | AA40: 성공 | AB40: 9.780821918
B41: 2023-12-05 | C41: 15:35:00 | D41: 15391 | E41: 2238 | F41: 10643 | G41: 1102 | H41: -4748 | I41: 332.65 | J41: 2.780772306 | K41: 4.179577465 | M41: 2023-12-05 | N41: 15:45:00 | O41: 14028 | P41: 1583 | Q41: 10041 | R41: 839 | S41: -3987 | T41: 332.65 | U41: 3.106163747 | V41: 5.358870968 | W41: 332.65 | Y41: 상승 | Z41: 334.15 | AA41: 성공 | AB41: -0.1602780118
B42: 2023-12-06 | C42: 15:35:00 | D42: 13958 | E42: 1907 | F42: 15189 | G42: 1516 | H42: 1231 | I42: 333.9 | J42: 2.699779524 | K42: -3.148337596 | M42: 2023-12-06 | N42: 15:45:00 | O42: 12316 | P42: 1381 | Q42: 11653 | R42: 1107 | S42: -663 | T42: 333.5 | U42: 1.608473364 | V42: 2.419708029 | W42: 333.5 | Y42: 하락 | Z42: 333.8 | AA42: =IF(AND(Y41="상승",Z42>W41),"성공",IF(AND(Y41="하락",Z42<W41),"성공",IF(AND(Y41="상승",Z42=W41),"동일가",IF(AND(Y41="하락",Z42=W41),"동일가","실패")))) -> 성공 | AB42: =S42/H42-1 -> -1.538586515
B43: 2023-12-07 | C43: 15:35:00 | D43: 12299 | E43: 1489 | F43: 15158 | G43: 1957 | H43: 2859 | I43: 333 | J43: -0.5143771064 | K43: 6.108974359 | M43: 2023-12-07 | N43: 15:45:00 | O43: 11173 | P43: 1117 | Q43: 12060 | R43: 1519 | S43: 887 | T43: 332.4 | U43: -2.063251927 | V43: 2.206467662 | W43: 332.4 | Y43: =IF(H43>S43,"하락","상승") -> 하락 | Z43: 331.8 | AA43: =IF(AND(Y42="상승",Z43>W42),"성공",IF(AND(Y42="하락",Z43<W42),"성공",IF(AND(Y42="상승",Z43=W42),"동일가",IF(AND(Y42="하락",Z43=W42),"동일가","실패")))) -> 성공 | AB43: =S43/H43-1 -> -0.6897516614
B44: 2023-12-08 | C44: 15:35:00 | D44: 11485 | E44: 1233 | F44: 17894 | G44: 2482 | H44: 6409 | I44: 337.2 | J44: -2.105171182 | K44: 5.131305044 | M44: 2023-12-08 | N44: 15:45:00 | O44: 12935 | P44: 1290 | Q44: 15739 | R44: 1812 | S44: 2804 | T44: 337.25 | U44: -1.341149443 | V44: 5.37164751 | W44: 337.25 | Y44: =IF(H44>S44,"하락","상승") -> 하락 | Z44: 334.8 | AA44: =IF(AND(Y43="상승",Z44>W43),"성공",IF(AND(Y43="하락",Z44<W43),"성공",IF(AND(Y43="상승",Z44=W43),"동일가",IF(AND(Y43="하락",Z44=W43),"동일가","실패")))) -> 실패 | AB44: =S44/H44-1 -> -0.5624902481
B45: 2023-12-11 | C45: 15:35:00 | D45: 13135 | E45: 1427 | F45: 17334 | G45: 2336 | H45: 4199 | I45: 338.3 | J45: -1.784248375 | K45: 4.619361936 | M45: 2023-12-11 | N45: 15:45:00 | O45: 11811 | P45: 1168 | Q45: 12822 | R45: 1447 | S45: 1011 | T45: 338.25 | U45: -1.25106562 | V45: 3.623655914 | W45: 338.25 | Y45: =IF(H45>S45,"하락","상승") -> 하락 | Z45: 338 | AA45: =IF(AND(Y44="상승",Z45>W44),"성공",IF(AND(Y44="하락",Z45<W44),"성공",IF(AND(Y44="상승",Z45=W44),"동일가",IF(AND(Y44="하락",Z45=W44),"동일가","실패")))) -> 실패 | AB45: =S45/H45-1 -> -0.7592283877
B46: 2023-12-12 | C46: 15:35:00 | D46: 12966 | E46: 1565 | F46: 15848 | G46: 1966 | H46: 2882 | I46: 340.45 | J46: -0.2239463857 | K46: 7.187032419 | M46: 2023-12-12 | N46: 15:45:00 | O46: 10545 | P46: 1314 | Q46: 11919 | R46: 1160 | S46: 1374 | T46: 340.5 | U46: 2.249885845 | V46: -8.922077922 | W46: 340.5 | Y46: =IF(H46>S46,"하락","상승") -> 하락 | Z46: 340.05 | AA46: =IF(AND(Y45="상승",Z46>W45),"성공",IF(AND(Y45="하락",Z46<W45),"성공",IF(AND(Y45="상승",Z46=W45),"동일가",IF(AND(Y45="하락",Z46=W45),"동일가","실패")))) -> 실패 | AB46: =S46/H46-1 -> -0.5232477446
B47: ='1. 매수매도 총잔량'!$A$3 -> 2023-12-12 | C47: ='1. 매수매도 총잔량'!$A$424 -> 15:35:00 | D47: ='1. 매수매도 총잔량'!$B$424 -> 12966 | E47: ='1. 매수매도 총잔량'!$C$424 -> 1565 | F47: ='1. 매수매도 총잔량'!$D$424 -> 15848 | G47: ='1. 매수매도 총잔량'!$E$424 -> 1966 | H47: ='1. 매수매도 총잔량'!$F$424 -> 2882 | I47: ='1. 매수매도 총잔량'!$G$425 -> 340.45 | J47: ='1. 매수매도 총잔량'!$H$424 -> -0.2239463857 | K47: ='1. 매수매도 총잔량'!$I$424 -> 7.187032419 | M47: ='1. 매수매도 총잔량'!$A$3 -> 2023-12-12 | N47: ='1. 매수매도 총잔량'!$A$434 -> 15:45:00 | O47: ='1. 매수매도 총잔량'!$B$434 -> 10545 | P47: ='1. 매수매도 총잔량'!$C$434 -> 1314 | Q47: ='1. 매수매도 총잔량'!$D$434 -> 11919 | R47: ='1. 매수매도 총잔량'!$E$434 -> 1160 | S47: ='1. 매수매도 총잔량'!$F$434 -> 1374 | T47: ='1. 매수매도 총잔량'!$G$435 -> 340.5 | U47: ='1. 매수매도 총잔량'!$H$434 -> 2.249885845 | V47: ='1. 매수매도 총잔량'!$I$434 -> -8.922077922 | W47: =T47 -> 340.5 | Y47: =IF(H47>S47,"하락","상승") -> 하락 | Z47: =[1]!'101TC000.029' -> 340.05 | AA47: =IF(AND(Y46="상승",Z47>W46),"성공",IF(AND(Y46="하락",Z47<W46),"성공",IF(AND(Y46="상승",Z47=W46),"동일가",IF(AND(Y46="하락",Z47=W46),"동일가","실패")))) -> 성공 | AB47: =S47/H47-1 -> -0.5232477446
B48: ='1. 매수매도 총잔량'!$A$3 -> 2023-12-12 | C48: ='1. 매수매도 총잔량'!$A$424 -> 15:35:00 | D48: ='1. 매수매도 총잔량'!$B$424 -> 12966 | E48: ='1. 매수매도 총잔량'!$C$424 -> 1565 | F48: ='1. 매수매도 총잔량'!$D$424 -> 15848 | G48: ='1. 매수매도 총잔량'!$E$424 -> 1966 | H48: ='1. 매수매도 총잔량'!$F$424 -> 2882 | I48: ='1. 매수매도 총잔량'!$G$425 -> 340.45 | J48: ='1. 매수매도 총잔량'!$H$424 -> -0.2239463857 | K48: ='1. 매수매도 총잔량'!$I$424 -> 7.187032419 | M48: ='1. 매수매도 총잔량'!$A$3 -> 2023-12-12 | N48: ='1. 매수매도 총잔량'!$A$434 -> 15:45:00 | O48: ='1. 매수매도 총잔량'!$B$434 -> 10545 | P48: ='1. 매수매도 총잔량'!$C$434 -> 1314 | Q48: ='1. 매수매도 총잔량'!$D$434 -> 11919 | R48: ='1. 매수매도 총잔량'!$E$434 -> 1160 | S48: ='1. 매수매도 총잔량'!$F$434 -> 1374 | T48: ='1. 매수매도 총잔량'!$G$435 -> 340.5 | U48: ='1. 매수매도 총잔량'!$H$434 -> 2.249885845 | V48: ='1. 매수매도 총잔량'!$I$434 -> -8.922077922 | W48: =T48 -> 340.5 | Y48: =IF(H48>S48,"하락","상승") -> 하락 | Z48: =[1]!'101TC000.029' -> 340.05 | AA48: =IF(AND(Y47="상승",Z48>W47),"성공",IF(AND(Y47="하락",Z48<W47),"성공",IF(AND(Y47="상승",Z48=W47),"동일가",IF(AND(Y47="하락",Z48=W47),"동일가","실패")))) -> 성공 | AB48: =S48/H48-1 -> -0.5232477446
